Cogmind - Beta 12 @@@ ROGUE MODE // 2023.04.06 @ 23:03:25 Player: Mr Goldstein Result: Destroyed by P-80 Master with Gamma Rifle Performance ------------- Evolutions (9) 4500 Regions Visited (20) 4000 Robots Destroyed (121) 605 Value Destroyed (2612) 2612 Prototype IDs (44) 880 Alien Tech Used (0) 0 Bonus (1595) 1595 TOTAL SCORE: 14192 Bonus ------- Follower Combat Kills 151 Entered DSFs 500 Met Warlord at Base 500 MAIN.C Attacked Warlord 500 Friendly Fire -56 Cogmind --------- Core Integrity 0/1600 Matter 195/300 Energy 77/100 System Corruption 14% Temperature Cool (0) Movement Core (50) Location -1/Access Parts ------- > --- POWER (3) -------- (None) > --- PROPULSION (9) --- (None) > --- UTILITY (11) ----- Advanced Terrain Scan Processor > --- WEAPON (2) ------- (None) > --- INVENTORY (5) ---- Enhanced Force Lance Peak State ------------ > --- POWER ------------ Neutrino Core Light Particle Reactor > --- PROPULSION ------- Myomer Leg Biometal Leg Biometal Leg Centrium Leg Improved Antigrav System Combat Linear Gravjet Experimental Q-thruster > --- UTILITY ---------- Advanced Cooling System Advanced Cooling System Advanced Signal Interpreter Advanced Signal Interpreter Makeshift System Shield > --- WEAPON ----------- Railgun Hypervelocity Multirail > --- INVENTORY -------- Advanced Terrain Scan Processor Improved Hardlight Generator Heavy Flak Cannon Thermoblaster Makeshift Sword [Rating: 120] Favorites ----------- Power Deuterium Engine Engine Deuterium Engine Power Core Light Fission Core Reactor Antimatter Reactor Propulsion Wheel Treads Light Treads Leg Biometal Leg Wheel Wheel Hover Unit Gyrokinetic Inverter Flight Unit Field Propulsion Drive Utility Huge Storage Unit Device Improved Heat Sink Storage Huge Storage Unit Processor Advanced Signal Interpreter Hackware Hacking Suite Protection Medium Armor Plating Weapon Shotgun Energy Gun Beam Rifle Energy Cannon Beam Cannon Ballistic Gun Shotgun Ballistic Cannon Heavy Flak Cannon Launcher Mini Grenade Launcher Slashing Weapon Makeshift Sword Piercing Weapon Makeshift Spear Special Melee Weapon Dirty Datajack Build | -11 -10 -10 -9 -9 -9 -8 -8 -7 -6 -5 -4 -4 -4 -4 -3 -3 -3 -2 -2 -1 ------- Run | Jun Mat Min Mat Min Exi Min Mat Fac Fac Fac Fac Upp Upp War Pro Res DSF Res Tes Acc Slots Evolved 18 | . . . 2 . . . 2 2 2 2 2 . . . . 2 . 2 . 2 Power 2 | . . . . . . . . 1 . . . . . . . . . . . 1 Propulsion 7 | . . . 1 . . . 1 1 . 1 1 . . . . . . 1 . 1 Utility 9 | . . . 1 . . . 1 . 2 1 1 . . . . 2 . 1 . . Weapon . | . . . . . . . . . . . . . . . . . . . . . Parts Attached 208 | 3 5 10 23 17 5 . 15 16 26 15 15 1 1 16 4 2 . 11 14 9 Power 26 | . . 2 1 2 . . . 2 3 1 7 . . 2 1 . . 3 1 1 Engine 6 | . . 2 1 2 . . . 1 . . . . . . . . . . . . Core 13 | . . . . . . . . 1 3 1 5 . . 1 . . . 2 . . Reactor 7 | . . . . . . . . . . . 2 . . 1 1 . . 1 1 1 Propulsion 52 | 2 1 4 6 5 . . 1 5 5 4 3 . . 5 . 1 . 7 3 . Treads 2 | . . 2 . . . . . . . . . . . . . . . . . . Leg 6 | . . . . . . . . . . 2 . . . . . . . 3 1 . Wheel 16 | 2 1 2 6 4 . . 1 . . . . . . . . . . . . . Hover 4 | . . . . . . . . . . 1 . . . . . . . 3 . . Flight 24 | . . . . 1 . . . 5 5 1 3 . . 5 . 1 . 1 2 . Utility 55 | . 2 2 6 1 . . 9 6 8 5 5 . 1 2 1 1 . . 3 3 Device 28 | . . . 1 . . . 6 3 4 4 4 . . 2 . 1 . . 2 1 Storage 2 | . 1 1 . . . . . . . . . . . . . . . . . . Processor 12 | . 1 . 1 . . . 2 2 2 1 1 . . . . . . . 1 1 Hackware 6 | . . . . . . . . 1 2 . . . 1 . 1 . . . . 1 Protection 7 | . . 1 4 1 . . 1 . . . . . . . . . . . . . Artifact . | . . . . . . . . . . . . . . . . . . . . . Weapon 75 | 1 2 2 10 9 5 . 5 3 10 5 . 1 . 7 2 . . 1 7 5 Energy Gun 3 | . . . . . 2 . . . . . . . . 1 . . . . . . Energy Cannon 5 | . 1 2 1 . 1 . . . . . . . . . . . . . . . Ballistic Gun 22 | 1 . . 8 6 . . 4 . . . . . . . . . . . 3 . Ballistic Cannon 1 | . . . . . . . . . . . . . . . . . . . 1 . Launcher 17 | . 1 . 1 3 . . 1 . 4 1 . . . 2 . . . 1 1 2 Special Weapon . | . . . . . . . . . . . . . . . . . . . . . Impact Weapon . | . . . . . . . . . . . . . . . . . . . . . Slashing Weapon 19 | . . . . . 2 . . 3 6 1 . . . 2 2 . . . 2 1 Piercing Weapon 7 | . . . . . . . . . . 3 . 1 . 1 . . . . . 2 Special Melee Weapon 1 | . . . . . . . . . . . . . . 1 . . . . . . Unidentified Prototypes 7 | . . . . . . . . 1 . 2 . . . 1 . . . 1 2 . Parts Lost 67 | . 2 6 6 8 . . . . 8 12 . . . 2 2 . 4 9 4 4 Power 13 | . . 2 1 1 . . . . 2 2 . . . . . . 1 1 2 1 Propulsion 33 | . 1 2 3 4 . . . . 5 6 . . . 2 1 . 3 4 1 1 Utility 12 | . . . 1 1 . . . . 1 2 . . . . 1 . . 4 1 1 Weapon 9 | . 1 2 1 2 . . . . . 2 . . . . . . . . . 1 Highest Loss Streak 7 | . 1 5 2 4 . . . . 5 7 . . . 2 1 . 4 5 4 4 To Critical Strikes . | . . . . . . . . . . . . . . . . . . . . . Average Slot Usage (%) 83 | . 90 79 95 83 100 100 98 95 90 57 58 76 78 83 91 84 85 34 60 10 Engine 7 | . 14 10 10 10 11 11 9 7 3 . . . . . . . . . . . Core 1 | . . . . . . . . 5 6 2 6 10 10 10 5 4 4 1 3 . Wheel 14 | . 26 26 29 10 33 33 34 3 . . . . . . . . . . . . Hover 1 | . . . . . . . . . . 1 5 5 5 5 . . . 3 7 . Flight 7 | . . . . 7 . . . 33 27 4 11 15 15 15 28 27 28 3 1 3 Device 9 | . . . 8 11 11 11 9 6 9 3 8 15 15 14 15 19 19 6 7 . Storage 7 | . 14 12 11 11 11 11 9 1 . . . . . . . . . . . . Processor 4 | . 5 5 2 . . . 9 13 13 17 15 15 12 10 10 9 9 5 4 2 Hackware 3 | . . . . . . . . 5 14 16 10 10 12 15 15 9 9 5 4 2 Protection 6 | . . 1 11 10 11 11 9 1 . . . . . . . . . . . . Energy Cannon 1 | . 3 10 6 . . . . . . . . . . . . . . . . . Ballistic Gun 10 | . 24 5 14 16 7 . 17 1 . . . . . . . . . . 5 . Launcher 1 | . . 5 . 5 . . . . . . . . . . . . . . . . Slashing Weapon 2 | . . . . . 13 . . 12 12 2 . . . 4 5 4 4 2 . 1 Naked Turns 17 | . . 16 . . . . . . . . . . . . . . . . 1 . Heaviest Build 104 | 13 89 97 99 103 103 103 104 104 21 15 21 23 23 25 34 34 34 20 46 2 Greatest Support 111 | 20 26 40 36 36 30 30 46 46 25 33 29 29 29 39 39 41 41 86 111 6 Greatest Overweight (x) 25 | . 3 5 9 25 3 3 3 2 . 2 . . . . . . . . . . Average Overweight (x) 1 | . . 2 3 5 3 3 2 . . . . . . . . . . . . . Largest Inventory Capacity 25 | 8 25 25 25 25 25 25 25 25 5 5 5 5 5 5 5 5 5 5 5 5 Average Capacity 18 | 8 11 22 25 25 25 25 25 9 5 5 5 5 5 5 5 5 5 5 5 5 Most Carried 25 | 6 16 16 25 23 25 25 25 25 5 5 5 5 5 5 5 5 5 5 5 5 Average Carried 15 | 6 8 10 19 21 24 25 24 8 4 4 4 5 5 4 5 4 4 4 4 3 Final Capacity 25 | 8 25 25 25 25 25 25 25 5 5 5 5 5 5 5 5 5 5 5 5 5 Final Carried 25 | 6 16 12 23 23 25 25 24 5 5 5 5 5 5 5 5 4 5 5 5 1 Class Distribution -------------------- 37% | Scavenger-Mutant 34% | Mutant 16% | Hacker-Mutant 5% | Hacker-Sprinter 4% | Scavenger-Sprinter Dominant Class ---------------- Mutant | -10/Materials Mutant | -10/Mines Scavenger-Mutant | -9/Materials Mutant | -9/Mines Scavenger-Mutant | -9/Exiles Scavenger-Mutant | -8/Mines Scavenger-Mutant | -8/Materials Scavenger-Sprinter | -7/Factory Hacker-Sprinter | -6/Factory Hacker-Mutant | -5/Factory Hacker-Mutant | -4/Factory Hacker-Mutant | -4/Upper Caves Hacker-Mutant | -4/Upper Caves Hacker-Mutant | -4/Warlord Hacker-Sprinter | -3/Proximity Caves Scavenger-Sprinter | -3/Research Scavenger-Sprinter | -3/DSF Mutant | -2/Research Scavenger-Mutant | -2/Testing Sprinter | -1/Access Resources | -11 -10 -10 -9 -9 -9 -8 -8 -7 -6 -5 -4 -4 -4 -4 -3 -3 -3 -2 -2 -1 ----------- Run | Jun Mat Min Mat Min Exi Min Mat Fac Fac Fac Fac Upp Upp War Pro Res DSF Res Tes Acc Matter Collected 3368 | 193 184 135 435 436 92 . 658 57 398 146 . 43 . 270 30 35 . 73 159 24 Remotely . | . . . . . . . . . . . . . . . . . . . . . Salvage Created 5319 | . 316 69 977 666 439 . 1219 57 1030 316 . . . 66 19 37 . 108 . . Parts 272 | . 18 . 71 48 14 . 54 8 40 9 . . . 1 2 1 . 6 . . Haulers Intercepted 9 | . 2 . 4 . . . 2 . . 1 . . . . . . . . . . Recyclers Shooed 6 | . 1 . . . . . 4 . 1 . . . . . . . . . . . Parts Field Recycled . | . . . . . . . . . . . . . . . . . . . . . Retrieved Matter . | . . . . . . . . . . . . . . . . . . . . . Parts Self-Destructed 2 | . . . . . . . . . . . . . . . 2 . . . . . Prevented . | . . . . . . . . . . . . . . . . . . . . . Kills | -11 -10 -10 -9 -9 -9 -8 -8 -7 -6 -5 -4 -4 -4 -4 -3 -3 -3 -2 -2 -1 ------- Run | Jun Mat Min Mat Min Exi Min Mat Fac Fac Fac Fac Upp Upp War Pro Res DSF Res Tes Acc Combat Hostiles Destroyed 80 | . 5 12 23 17 . . 13 . 2 4 . . . 1 2 . . 1 . . Melee 7 | . . . . . . . . . 2 2 . . . 1 2 . . . . . Guns 40 | . 4 . 12 15 . . 9 . . . . . . . . . . . . . Cannons 11 | . 1 4 6 . . . . . . . . . . . . . . . . . AOE 21 | . . 8 4 2 . . 4 . . 2 . . . . . . . 1 . . Classes Destroyed 15 | . 4 1 5 2 . . . . 1 1 . . . . 1 . . . . . Worker 11 | . . . 1 4 . . 3 . 3 . . . . . . . . . . . Builder 2 | . . . . 1 . . 1 . . . . . . . . . . . . . Tunneler 2 | . . . . 2 . . . . . . . . . . . . . . . . Hauler 9 | . 2 . 4 . . . 2 . . 1 . . . . . . . . . . Recycler 16 | . 1 . 1 1 . . 7 . 5 1 . . . . . . . . . . Operator 7 | . . . 2 . . . 1 1 1 . . . . . . 1 . 1 . . Drone 2 | . . . . . . . . . . . . . . . 2 . . . . . Watcher 6 | . . . 2 . . . 1 1 2 . . . . . . . . . . . Swarmer 30 | . 3 . 13 10 . . 4 . . . . . . . . . . . . . Grunt 19 | . 2 . 3 5 . . 8 . . 1 . . . . . . . . . . Duelist 4 | . . . 1 1 . . 1 . . . . . . 1 . . . . . . Sentry 8 | . . . 6 1 . . . . . . . . . . . . . 1 . . Hunter 2 | . . . . . . . . . 2 . . . . . . . . . . . Programmer 3 | . . . . . . . . . . 3 . . . . . . . . . . Assembled 12 | . . 12 . . . . . . . . . . . . . . . . . . Best Kill Streak 9 | . 5 8 9 4 . . 7 2 4 3 . . . 1 2 1 . 1 . . Combat Bots Only 8 | . 4 8 6 4 . . 7 . 2 2 . . . 1 2 . . 1 . . Max Kills in Single Turn 4 | . 2 4 3 2 . . 2 1 1 2 . . . 1 1 1 . 1 . . Gunslinging 1 | . 1 . . 1 . . . . . . . . . . . . . . . . Exploded 4 | . . 4 2 1 . . 2 . . 2 . . . . . . . 1 . . Melee 1 | . . . . . . . . . 1 1 . . . 1 1 . . . . . Uniques/NPCs Destroyed . | . . . . . . . . . . . . . . . . . . . . . Combat | -11 -10 -10 -9 -9 -9 -8 -8 -7 -6 -5 -4 -4 -4 -4 -3 -3 -3 -2 -2 -1 -------- Run | Jun Mat Min Mat Min Exi Min Mat Fac Fac Fac Fac Upp Upp War Pro Res DSF Res Tes Acc Damage Taken 9920 | . 301 643 1006 583 . . 396 33 484 1356 39 21 . 190 238 . 131 1708 777 2014 Core 4088 | . 59 176 141 52 . . 29 . 143 857 . . . 37 48 . . 835 90 1621 Absorbed by Shields 306 | . . . . . . . . . . . 13 7 . 71 86 . 46 5 . 78 Regen/Repaired (Parts) 9 | . . . . . . . . . . . . . . 9 . . . . . . Core Remaining (%) 67 | 100 . 6 . . . 51 94 100 83 14 . . . . 92 . 100 . 36 . Volleys Fired 257 | . 33 14 65 48 8 . 68 . 5 3 . . . . . . . 3 9 1 Largest 2 | . 2 2 2 2 2 . 2 . 1 1 . . . . . . . 1 2 1 Hottest 260 | . 80 120 128 53 46 . 58 . 36 43 . . . . . . . 260 88 260 Shots Fired 491 | . 65 28 121 95 16 . 136 . 5 3 . . . . . . . 3 18 1 Gun 378 | . 61 5 61 92 16 . 134 . . . . . . . . . . . 9 . Cannon 87 | . 4 18 56 . . . . . . . . . . . . . . . 9 . Launcher 26 | . . 5 4 3 . . 2 . 5 3 . . . . . . . 3 . 1 Special . | . . . . . . . . . . . . . . . . . . . . . Kinetic 387 | . 61 5 61 92 16 . 134 . . . . . . . . . . . 18 . Thermal 82 | . 4 18 56 . . . . . . . . . . . . . . 3 . 1 Explosive 22 | . . 5 4 3 . . 2 . 5 3 . . . . . . . . . . Electromagnetic . | . . . . . . . . . . . . . . . . . . . . . Robot Hit Streak 17 | . 9 5 11 16 4 . 17 . . . . . . . . . . 8 . . Robot Miss Streak 7 | . 7 3 4 4 3 . 3 . . . . . . . . . . . . . Penetration Max . | . . . . . . . . . . . . . . . . . . . . . Secondary Targets 4 | . 1 . . 3 . . . . . . . . . . . . . . . . Max Gunslinging Chain 1 | . 1 . . 1 . . . . . . . . . . . . . . . . Shots Hit Robots 366 | . 41 16 76 57 35 . 89 3 21 10 . . . 3 3 5 . 7 . . Core Hits 210 | . 15 25 44 36 15 . 45 2 10 9 1 . . 2 1 2 . 3 . . Critical Kills 2 | . . . . 2 . . . . . . . . . . . . . . . . Critical Parts Destroyed 1 | . . . . . . . 1 . . . . . . . . . . . . . Critical Strikes 5 | . . . . 2 1 . 1 . . 1 . . . . . . . . . . Destroy 3 | . . . . 2 . . 1 . . . . . . . . . . . . . Sever 2 | . . . . . 1 . . . . 1 . . . . . . . . . . Melee Attacks 102 | . . . . . 26 . . 3 26 15 . . . 3 9 7 . 7 2 4 Impact . | . . . . . . . . . . . . . . . . . . . . . Slashing 81 | . . . . . 26 . . 3 26 6 . . . 1 7 5 . 5 2 . Piercing 21 | . . . . . . . . . . 9 . . . 2 2 2 . 2 . 4 Sneak Attacks 12 | . . . . . . . . . 10 1 . . . . 1 . . . . . Combat Hostiles 1 | . . . . . . . . . . . . . . . 1 . . . . . Follow-up Attacks 11 | . . . . . 3 . . . 1 2 . . . 1 1 1 . 2 . . Damage Inflicted 10131 | . 436 648 1481 964 1801 . 1642 184 1369 717 17 . . 94 165 210 . 392 . 11 Guns 3467 | . 383 24 628 779 171 . 1482 . . . . . . . . . . . . . Cannons 864 | . 53 194 617 . . . . . . . . . . . . . . . . . Explosions 1485 | . . 430 236 185 . . 160 . . 280 . . . . . . . 194 . . Melee 4270 | . . . . . 1630 . . 184 1369 431 . . . 94 165 210 . 187 . . Ramming 45 | . . . . . . . . . . 6 17 . . . . . . 11 . 11 Kinetic 3467 | . 383 24 628 779 171 . 1482 . . . . . . . . . . . . . Thermal 1058 | . 53 194 617 . . . . . . . . . . . . . . 194 . . Explosive 1291 | . . 430 236 185 . . 160 . . 280 . . . . . . . . . . Electromagnetic . | . . . . . . . . . . . . . . . . . . . . . Impact . | . . . . . . . . . . . . . . . . . . . . . Slashing 3947 | . . . . . 1630 . . 184 1369 225 . . . 38 165 183 . 153 . . Piercing 323 | . . . . . . . . . . 206 . . . 56 . 27 . 34 . . Highest Corruption 14 | . . . . . . . . . . 8 1 1 1 1 . . 2 . . 14 Average Corruption 2 | . . . . . . . . . . 3 1 1 1 1 . . 1 . . 5 Corruption Purged . | . . . . . . . . . . . . . . . . . . . . . Corruption Blocked 29 | . . . . . . . . . . . . . . 9 . . . . 20 . Effects 10 | . . . . . . . . . . 8 . 1 1 . . . . . . . Message Errors 3 | . . . . . . . . . . 2 . 1 . . . . . . . . Matter Fused 3 | . . . . . . . . . . 3 . . . . . . . . . . Heat Flow Errors 1 | . . . . . . . . . . . . . 1 . . . . . . . Parts Rejected 1 | . . . . . . . . . . 1 . . . . . . . . . . Data Loss (minor) 2 | . . . . . . . . . . 2 . . . . . . . . . . Overload Shots . | . . . . . . . . . . . . . . . . . . . . . Overflow Damage 775 | . . . 32 . 251 . . 15 286 78 . . . . 49 16 . 48 . . Projectiles 6 | . . . 6 . . . . . . . . . . . . . . . . . Explosions 118 | . . . 26 . . . . . 15 77 . . . . . . . . . . Melee 651 | . . . . . 251 . . 15 271 1 . . . . 49 16 . 48 . . Knockbacks . | . . . . . . . . . . . . . . . . . . . . . Impact . | . . . . . . . . . . . . . . . . . . . . . Kinetic . | . . . . . . . . . . . . . . . . . . . . . Secondary . | . . . . . . . . . . . . . . . . . . . . . Self-Inflicted Damage 167 | . . 63 . . . . 34 . 50 3 8 . . . . . . 5 . 4 Shots 5 | . . 2 . . . . 1 . 2 . . . . . . . . . . . Rammed 8 | . . . . . . . . . . 2 1 . . . . . . 1 . 4 Targets Rammed 8 | . . . . . . . . . . 2 1 . . . . . . 1 . 4 Kicked . | . . . . . . . . . . . . . . . . . . . . . Crushed . | . . . . . . . . . . . . . . . . . . . . . Highest Temperature 398 | . 132 220 343 12 . . . 140 83 . . . 208 2 126 . . 398 . 160 Average Temperature 65 | . 45 92 118 7 . . . 60 23 . . . 190 1 36 . . 202 . 84 Received Heat Transfer 1143 | . 90 12 189 267 . . 168 18 45 120 6 . . . 12 . . 72 144 . Effects 1 | . . . 1 . . . . . . . . . . . . . . . . . Shutdowns 1 | . . . 1 . . . . . . . . . . . . . . . . . Siege Activations . | . . . . . . . . . . . . . . . . . . . . . Robots Corrupted . | . . . . . . . . . . . . . . . . . . . . . Combat Hostiles . | . . . . . . . . . . . . . . . . . . . . . Parts Fried . | . . . . . . . . . . . . . . . . . . . . . Impact Corruptions . | . . . . . . . . . . . . . . . . . . . . . Robots Melted 1 | . . . 1 . . . . . . . . . . . . . . . . . Combat Hostiles 1 | . . . 1 . . . . . . . . . . . . . . . . . Parts Melted 4 | . . . 3 . . . . . . . . . . . . . . 1 . . Heat Transferred 1936 | . 111 407 1258 . . . . . . . . . . . . . . 160 . . Parts Sabotaged . | . . . . . . . . . . . . . . . . . . . . . Parts Stolen . | . . . . . . . . . . . . . . . . . . . . . Parts Stripped . | . . . . . . . . . . . . . . . . . . . . . Power Chain Reactions . | . . . . . . . . . . . . . . . . . . . . . Missiles Intercepted 2 | . . . . . . . . . . . . . . 2 . . . . . . Alert | -11 -10 -10 -9 -9 -9 -8 -8 -7 -6 -5 -4 -4 -4 -4 -3 -3 -3 -2 -2 -1 ------- Run | Jun Mat Min Mat Min Exi Min Mat Fac Fac Fac Fac Upp Upp War Pro Res DSF Res Tes Acc Peak Influence 584 | . 167 56 369 314 . . 335 161 322 165 204 . . . . 444 351 509 390 584 Initial 374 | . . 5 . 143 . . . 44 73 88 61 . . . . 374 336 174 285 209 Average 130 | . 92 34 200 66 . . 142 56 147 132 125 . . . . 415 333 323 325 365 Maximum Alert Level 2 | . . . 1 1 . . 1 . 1 . 1 . . . . 2 1 2 1 2 Low Security (%) 72 | 100 100 100 40 88 . 100 70 100 76 100 98 . . . . . . 10 . . Level 1 25 | . . . 59 11 . . 29 . 23 . 1 . . . . 33 100 70 100 59 Level 2 2 | . . . . . . . . . . . . . . . . 66 . 19 . 40 Level 3 . | . . . . . . . . . . . . . . . . . . . . . Level 4 . | . . . . . . . . . . . . . . . . . . . . . Level 5 . | . . . . . . . . . . . . . . . . . . . . . High Security . | . . . . . . . . . . . . . . . . . . . . . Max Security . | . . . . . . . . . . . . . . . . . . . . . Squads Dispatched 23 | . 1 1 2 . . . 2 . 2 4 2 . . . . . 1 2 5 1 Investigation 10 | . . 1 . . . . . . 2 2 2 . . . . . . 1 1 1 Extermination 1 | . . . . . . . . . . 1 . . . . . . . . . . Reinforcement 10 | . 1 . 2 . . . 1 . . 1 . . . . . . 1 1 3 . Assault . | . . . . . . . . . . . . . . . . . . . . . Garrison 2 | . . . . . . . 1 . . . . . . . . . . . 1 . Intercept . | . . . . . . . . . . . . . . . . . . . . . Searches Triggered . | . . . . . . . . . . . . . . . . . . . . . Construction Impeded . | . . . . . . . . . . . . . . . . . . . . . Haulers Reinforced 1 | . . . . . . . . . . . . . . . . . . 1 . . Active Scanning Responses . | . . . . . . . . . . . . . . . . . . . . . Cargo Convoy Interrupts . | . . . . . . . . . . . . . . . . . . . . . Stealth | -11 -10 -10 -9 -9 -9 -8 -8 -7 -6 -5 -4 -4 -4 -4 -3 -3 -3 -2 -2 -1 --------- Run | Jun Mat Min Mat Min Exi Min Mat Fac Fac Fac Fac Upp Upp War Pro Res DSF Res Tes Acc Distress Signals 13 | . 1 . 1 . . . 3 . . 1 1 . . . . . . 4 . 2 Communications Jammed 13 | . . . . . . . . . . . 6 . . 3 3 . . 1 . . Distress Signals 10 | . . . . . . . . . . . 6 . . 3 . . . 1 . . Times Spotted 303 | . 11 19 37 19 . . 27 11 15 21 7 3 . 33 19 1 3 28 17 32 Peak Tracking Total 18 | . 5 8 9 5 . . 5 8 3 8 6 2 . 10 9 1 3 10 12 18 Tactical Retreats 32 | . . 3 2 . . . 1 1 4 2 . 2 . 1 4 . . 7 1 4 Traps | -11 -10 -10 -9 -9 -9 -8 -8 -7 -6 -5 -4 -4 -4 -4 -3 -3 -3 -2 -2 -1 ------- Run | Jun Mat Min Mat Min Exi Min Mat Fac Fac Fac Fac Upp Upp War Pro Res DSF Res Tes Acc Traps Triggered . | . . . . . . . . . . . . . . . . . . . . . Indirectly . | . . . . . . . . . . . . . . . . . . . . . Trap Hack Attempts . | . . . . . . . . . . . . . . . . . . . . . Triggered . | . . . . . . . . . . . . . . . . . . . . . Disarmed . | . . . . . . . . . . . . . . . . . . . . . Reprogrammed 1 | . . . 1 . . . . . . . . . . . . . . . . . Reused 1 | . . . . . . . . . 1 . . . . . . . . . . . Traps Reconfigurated 12 | . . . . . . . 5 6 1 . . . . . . . . . . . Traps Extracted . | . . . . . . . . . . . . . . . . . . . . . Installed . | . . . . . . . . . . . . . . . . . . . . . Triggered 24 | . . . . . . . . . 1 . . . . 23 . . . . . . Machines | -11 -10 -10 -9 -9 -9 -8 -8 -7 -6 -5 -4 -4 -4 -4 -3 -3 -3 -2 -2 -1 ---------- Run | Jun Mat Min Mat Min Exi Min Mat Fac Fac Fac Fac Upp Upp War Pro Res DSF Res Tes Acc Machines Disabled 10 | . . . 2 1 . . 2 . . . . . . . . . . 1 3 1 Max in Single Turn 2 | . . . 2 1 . . 1 . . . . . . . . . . 1 1 1 Garrison Access 1 | . . . . . . . . . . . . . . . . . . 1 . . Machines Repaired . | . . . . . . . . . . . . . . . . . . . . . Machines Sabotaged . | . . . . . . . . . . . . . . . . . . . . . Overloaded Fab Kills . | . . . . . . . . . . . . . . . . . . . . . Hacking | -11 -10 -10 -9 -9 -9 -8 -8 -7 -6 -5 -4 -4 -4 -4 -3 -3 -3 -2 -2 -1 --------- Run | Jun Mat Min Mat Min Exi Min Mat Fac Fac Fac Fac Upp Upp War Pro Res DSF Res Tes Acc Machines Accessed 64 | . 4 1 7 . 2 . 4 2 9 7 5 1 . 7 . 5 . 2 3 5 Terminals 35 | . 4 . 6 . . . 4 1 5 4 4 . . . . 3 . 1 1 2 Fabricators 8 | . . . . . . . . 1 2 2 1 . . . . . . . 1 1 Repair Stations 1 | . . . . . . . . . 1 . . . . . . . . . . . Recycling Units . | . . . . . . . . . . . . . . . . . . . . . Scanalyzers 5 | . . . 1 . . . . . 1 . . . . . . 1 . . 1 1 Garrison Access 4 | . . . . . . . . . . 1 . . . . . 1 . 1 . 1 Total Hacks 168 | . 12 1 16 . 24 . 11 5 23 15 11 1 . 21 . 7 . 6 8 7 Successful 98 | . 7 1 7 . 24 . 5 2 12 7 6 1 . 21 . 3 . 1 . 1 Failed 70 | . 5 . 9 . . . 6 3 11 8 5 . . . . 4 . 5 8 6 Catastrophic 17 | . . . 3 . . . . 1 . 2 1 . . . . 3 . 1 3 3 Database Lockouts . | . . . . . . . . . . . . . . . . . . . . . Manual 33 | . . . . . 1 . 1 3 8 5 8 . . . . 2 . . 4 1 Terminals 89 | . 12 . 13 . . . 11 2 15 11 10 . . . . 5 . 3 4 3 Fabricators 12 | . . . . . . . . 3 4 2 1 . . . . . . . 1 1 Repair Stations 1 | . . . . . . . . . 1 . . . . . . . . . . . Recycling Units . | . . . . . . . . . . . . . . . . . . . . . Scanalyzers 11 | . . . 3 . . . . . 3 . . . . . . 1 . . 3 1 Garrison Access 8 | . . . . . . . . . . 2 . . . . . 1 . 3 . 2 Terminal Hacks 82 | . 7 1 5 . 24 . 5 . 5 5 5 1 . 21 . 2 . . . 1 Record 39 | . . . . . 23 . . . . . 1 . . 14 . . . . . 1 Robot Analysis 4 | . 1 . . . . . 1 . . 1 1 . . . . . . . . . Prototype ID Bank 8 | . 1 . 1 . . . 1 . . . . . . 5 . . . . . . Open Door 4 | . . 1 . . . . . . . . . 1 . 2 . . . . . . Open DSF 2 | . . . . . . . . . . . 1 . . . . 1 . . . . Level Access Points 3 | . . . . . . . . . 1 1 1 . . . . . . . . . Branch Access Points 2 | . . . . . . . . . 1 . . . . . . 1 . . . . Terminal Index 2 | . . . . . . . . . 1 . 1 . . . . . . . . . Alert Level 4 | . 1 . 1 . . . 1 . . 1 . . . . . . . . . . Unreport Threat 1 | . . . . . . . 1 . . . . . . . . . . . . . Locate Traps 2 | . 1 . 1 . . . . . . . . . . . . . . . . . Reprogram Traps 1 | . . . 1 . . . . . . . . . . . . . . . . . Hauler Manifests 3 | . 1 . 1 . . . 1 . . . . . . . . . . . . . Registered Components 2 | . . . . . . . . . 1 1 . . . . . . . . . . Registered Prototypes 1 | . . . . . . . . . . 1 . . . . . . . . . . Zone Layout 3 | . 2 . . . . . . . 1 . . . . . . . . . . . EX-Prototype ID Bank 1 | . . . . . 1 . . . . . . . . . . . . . . . Fabricator Hacks 7 | . . . . . . . . 1 4 2 . . . . . . . . . . Load Schematic 2 | . . . . . . . . . 2 . . . . . . . . . . . Build 5 | . . . . . . . . 1 2 2 . . . . . . . . . . Repair Station Hacks . | . . . . . . . . . . . . . . . . . . . . . Recycling Unit Hacks . | . . . . . . . . . . . . . . . . . . . . . Scanalyzer 5 | . . . 2 . . . . . 3 . . . . . . . . . . . Insert Component 2 | . . . 1 . . . . . 1 . . . . . . . . . . . Analyze 3 | . . . 1 . . . . . 2 . . . . . . . . . . . Garrison Access Hacks 1 | . . . . . . . . . . . . . . . . . . 1 . . Seal Access 1 | . . . . . . . . . . . . . . . . . . 1 . . Unauthorized Hacks 3 | . . . . . . . . 1 . . 1 . . . . 1 . . . . Terminals . | . . . . . . . . . . . . . . . . . . . . . Fabricators 2 | . . . . . . . . 1 . . 1 . . . . . . . . . Liberate 1 | . . . . . . . . 1 . . . . . . . . . . . . Overload 1 | . . . . . . . . . . . 1 . . . . . . . . . Repair Stations . | . . . . . . . . . . . . . . . . . . . . . Recycling Units . | . . . . . . . . . . . . . . . . . . . . . Scanalyzers 1 | . . . . . . . . . . . . . . . . 1 . . . . Researchers 1 | . . . . . . . . . . . . . . . . 1 . . . . Garrison Access . | . . . . . . . . . . . . . . . . . . . . . Data Cores Recovered 4 | . . . . . . . . 1 1 . . . . . . 1 . 1 . . Used 2 | . . . . . . . . 1 . . . . . . . . . 1 . . Hacking Detections 39 | . 3 . 5 . . . 3 2 6 3 3 . . . . 4 . 2 3 5 Full Trace Events 9 | . . . 1 . . . . . 2 2 1 . . . . . . 1 1 1 Feedback Events . | . . . . . . . . . . . . . . . . . . . . . Feedback Blocked . | . . . . . . . . . . . . . . . . . . . . . Robot Schematics Acquired . | . . . . . . . . . . . . . . . . . . . . . Robots Built 1 | . . . . . . . . 1 . . . . . . . . . . . . Authchips . | . . . . . . . . . . . . . . . . . . . . . Time 81 | . . . . . . . . 81 . . . . . . . . . . . . Total Robot Build Rating 1 | . . . . . . . . 1 . . . . . . . . . . . . Part Schematics Acquired 3 | . . . 1 . . . . . 1 . . . . . . . . . 1 . Parts Built 8 | . . . . . . . . . 4 4 . . . . . . . . . . Authchips . | . . . . . . . . . . . . . . . . . . . . . Time 301 | . . . . . . . . . 109 192 . . . . . . . . . . Total Part Build Rating 42 | . . . . . . . . . 12 30 . . . . . . . . . . Parts Repaired . | . . . . . . . . . . . . . . . . . . . . . Time . | . . . . . . . . . . . . . . . . . . . . . Parts Recycled . | . . . . . . . . . . . . . . . . . . . . . Recycled Matter . | . . . . . . . . . . . . . . . . . . . . . Retrieved Matter . | . . . . . . . . . . . . . . . . . . . . . Retrieved Components . | . . . . . . . . . . . . . . . . . . . . . Parts Scanalyzed 2 | . . . 1 . . . . . 1 . . . . . . . . . . . Part Schematics Acquired 2 | . . . 1 . . . . . 1 . . . . . . . . . . . Parts Damaged . | . . . . . . . . . . . . . . . . . . . . . Bothacking | -11 -10 -10 -9 -9 -9 -8 -8 -7 -6 -5 -4 -4 -4 -4 -3 -3 -3 -2 -2 -1 ------------ Run | Jun Mat Min Mat Min Exi Min Mat Fac Fac Fac Fac Upp Upp War Pro Res DSF Res Tes Acc Used RIF Installer . | . . . . . . . . . . . . . . . . . . . . . Robots Hacked . | . . . . . . . . . . . . . . . . . . . . . Non-combat . | . . . . . . . . . . . . . . . . . . . . . Combat . | . . . . . . . . . . . . . . . . . . . . . Robot Hacks Applied . | . . . . . . . . . . . . . . . . . . . . . Relay Couplers Released . | . . . . . . . . . . . . . . . . . . . . . Fabnet Peak Effective % . | . . . . . . . . . . . . . . . . . . . . . Robots Rewired 3 | . . . . . 3 . . . . . . . . . . . . . . . Allies Hacked . | . . . . . . . . . . . . . . . . . . . . . Hacks Repelled . | . . . . . . . . . . . . . . . . . . . . . Allies | -11 -10 -10 -9 -9 -9 -8 -8 -7 -6 -5 -4 -4 -4 -4 -3 -3 -3 -2 -2 -1 -------- Run | Jun Mat Min Mat Min Exi Min Mat Fac Fac Fac Fac Upp Upp War Pro Res DSF Res Tes Acc Total Allies 5 | . . . . 1 3 . . 1 . . . . . . . . . . . . Largest Group 3 | . . . . 1 3 3 3 1 . . . . . . . . . . . . Highest-Rated Group 37 | . . . . 31 37 37 37 10 . . . . . . . . . . . . Highest-Rated Ally 31 | . . . . 31 21 21 21 10 . . . . . . . . . . . . Total Orders . | . . . . . . . . . . . . . . . . . . . . . Ally Attacks 49 | . . . . 9 . . 40 . . . . . . . . . . . . . Total Damage 490 | . . . . 105 . . 385 . . . . . . . . . . . . . Kills 7 | . . . . 2 . . 5 . . . . . . . . . . . . . Allies Corrupted . | . . . . . . . . . . . . . . . . . . . . . Allies Melted 2 | . . . . . . . . . . . . . . 2 . . . . . . Intel | -11 -10 -10 -9 -9 -9 -8 -8 -7 -6 -5 -4 -4 -4 -4 -3 -3 -3 -2 -2 -1 ------- Run | Jun Mat Min Mat Min Exi Min Mat Fac Fac Fac Fac Upp Upp War Pro Res DSF Res Tes Acc Robot Analysis Total 4 | . 1 . . . . . 1 . . 1 1 . . . . . . . . . Derelict Logs Recovered 5 | . . 1 . 1 . . . . . . . 2 1 . . . . . . . Drone Launches . | . . . . . . . . . . . . . . . . . . . . . Drone Recoveries . | . . . . . . . . . . . . . . . . . . . . . Exploration | -11 -10 -10 -9 -9 -9 -8 -8 -7 -6 -5 -4 -4 -4 -4 -3 -3 -3 -2 -2 -1 ------------- Run | Jun Mat Min Mat Min Exi Min Mat Fac Fac Fac Fac Upp Upp War Pro Res DSF Res Tes Acc Turns Passed 11540 | 5 450 448 1586 3587 835 104 832 164 486 441 177 184 67 1075 204 95 15 357 293 135 Spaces Moved 10543 | 1 341 286 897 889 591 84 500 346 1048 687 367 492 174 1539 605 344 59 628 217 448 Core 312 | . . 33 . . . . . . . 129 45 . . . . . . 92 2 11 Treads 2 | . . 2 . . . . . . . . . . . . . . . . . . Legs 344 | . . . . . . . . . . 102 . . . . . . . 41 201 . Wheels 3451 | 1 341 251 897 774 591 84 500 12 . . . . . . . . . . . . Hover 113 | . . . . . . . . . . . . . . . . . . 113 . . Flight 6321 | . . . . 115 . . . 334 1048 456 322 492 174 1539 605 344 59 382 14 437 Fastest Speed 20 | 80 80 50 110 116 125 125 115 24 23 29 37 37 37 22 22 23 23 30 20 20 Average Speed 86 | 80 95 119 127 375 125 125 116 27 25 52 39 37 37 36 24 23 24 49 108 20 Slowest Speed 2040 | 80 135 320 215 2040 125 125 125 115 32 150 50 37 37 37 26 26 30 120 115 50 Overloaded Moves . | . . . . . . . . . . . . . . . . . . . . . Propulsion Burnouts . | . . . . . . . . . . . . . . . . . . . . . Robots Hopped 73 | . . . . . . . . 8 16 8 2 3 . 1 5 7 1 4 1 17 Cave-ins Triggered . | . . . . . . . . . . . . . . . . . . . . . Exploration Rate (%) 41 | 2 47 53 55 93 90 30 38 9 26 20 10 71 38 83 80 10 46 19 33 15 Regions Visited 20 Branch Regions 9 Pre-discovered Areas 3 | . . . . . 1 . . . . . . 1 1 . . . . . . . Known Exits Taken 12 | . . . . . . 1 1 1 1 1 1 1 1 1 1 1 . 1 . . Unknown Exits Taken 7 | 1 1 1 1 1 1 . . . . . . . . . . . . . 1 . Scrap Searched 11 | . . 2 . 3 . . . . . . . 2 1 . 3 . . . . . Spaces Dug 46 | . . . . . . . . . 46 . . . . . . . . . . . Terrain Destroyed 144 | . . 43 16 24 . . 11 . 46 . . . . . . . . 4 . . Melee . | . . . . . . . . . . . . . . . . . . . . . Projectile . | . . . . . . . . . . . . . . . . . . . . . AOE 144 | . . 43 16 24 . . 11 . 46 . . . . . . . . 4 . . Terrain Rammed . | . . . . . . . . . . . . . . . . . . . . . Walls Destroyed . | . . . . . . . . . . . . . . . . . . . . . Machines Disabled . | . . . . . . . . . . . . . . . . . . . . . Actions | -11 -10 -10 -9 -9 -9 -8 -8 -7 -6 -5 -4 -4 -4 -4 -3 -3 -3 -2 -2 -1 --------- Run | Jun Mat Min Mat Min Exi Min Mat Fac Fac Fac Fac Upp Upp War Pro Res DSF Res Tes Acc Total 12316 | 3 408 364 1217 1052 652 83 646 415 1211 729 393 489 175 2048 648 345 58 667 247 466 Wait 1064 | . 10 44 203 87 . . 34 31 103 7 5 . . 479 36 1 . 9 5 10 Move 10388 | . 340 285 896 888 590 83 499 335 1015 670 363 485 173 1536 594 331 56 619 214 416 Hop 63 | . . . . . . . . 2 16 8 2 3 . 1 5 5 1 4 1 15 Pick Up 122 | . 16 11 25 10 5 . 14 4 11 6 4 . . 5 . 1 . 7 2 1 Fast Attach 43 | . 1 3 . . . . 1 . 5 4 7 1 1 7 1 . . 3 7 2 Attach 85 | . 2 7 10 8 . . 2 13 8 8 5 . . 3 . 2 . 8 2 7 Detach 18 | . . . . . . . . 2 3 4 1 . . 2 . . 1 2 . 3 Swap 80 | 3 2 . 13 9 5 . 12 3 13 3 3 . . 6 3 . . . 5 . Drop 85 | . 4 . 5 2 3 . 16 22 8 3 3 . 1 7 2 . . 6 . 3 Fire 257 | . 33 14 65 48 8 . 68 . 5 3 . . . . . . . 3 9 1 Melee 81 | . . . . . 18 . . 3 24 11 . . . 2 7 5 . 5 2 4 Ram 7 | . . . . . . . . . . 2 . . . . . . . 1 . 4 Kick . | . . . . . . . . . . . . . . . . . . . . . Crush . | . . . . . . . . . . . . . . . . . . . . . Escape Stasis . | . . . . . . . . . . . . . . . . . . . . . Rewire 23 | . . . . . 23 . . . . . . . . . . . . . . . Trap . | . . . . . . . . . . . . . . . . . . . . . Miscellaneous . | . . . . . . . . . . . . . . . . . . . . . Route ------- -11/Junkyard -10/Materials (discovered 2 exits: *Mat / *Min) -10/Mines -9/Materials (discovered 3 exits: *Mat x2 / [*Min]) -9/Mines (discovered 3 exits: *Mat x2 / *Exi) -9/Exiles -8/Mines -8/Materials (discovered 3 exits: *Fac x2 / [*Sto]) -7/Factory -6/Factory (discovered 8 exits: *Fac x4 / *Low x2 / Ext x2) -5/Factory (discovered 4 exits: *Fac x4) -4/Factory (discovered 5 exits: Res x4 / *Upp) -4/Upper Caves -4/Upper Caves -4/Warlord -3/Proximity Caves -3/Research (discovered 3 exits: Qua x2 / DSF) -3/DSF -2/Research (discovered 2 exits: *Acc / *Tes) -2/Testing -1/Access History --------- Turn | Location | Event 6 | -11/Junkyard | Discovered new exit (range 0) 6 | -11/Junkyard | Entered Materials 174 | -10/Materials | Discovered new exit (range 6) 264 | -10/Materials | Discovered new exit (range 14) 308 | -10/Materials | Build established: Mutant 456 | -10/Materials | Entered Mines 472 | -10/Mines | Met a Derelict bent on vengeance 493 | -10/Mines | Assembled infested the area 540 | -10/Mines | Destroyed 8 combat bots 627 | -10/Mines | Core integrity fell below 50% 640 | -10/Mines | Released all parts (4) 649 | -10/Mines | Learned location of 1 exit from Materials 668 | -10/Mines | Lost 5 parts (1p2n2w) 735 | -10/Mines | Core integrity fell below 20% 837 | -10/Mines | Discovered new exit (range 13) 858 | -10/Mines | Met a Derelict shopkeep closing up shop 904 | -10/Mines | Entered Materials 904 | -9/Materials | Evolved 2 slots: Propulsion x1, Utility x1 905 | -9/Materials | Identified exit to Materials 1111 | -9/Materials | Discovered new exit (range 12) 1742 | -9/Materials | Build established: Scavenger-Mutant 1846 | -9/Materials | Discovered exit to Materials (range 15) 2490 | -9/Materials | Entered Mines 2545 | -9/Mines | Discovered exit to Materials (range 6) 2608 | -9/Mines | Received a Mining Laser from a helpful Derelict 2738 | -9/Mines | Lost 3 parts (1p1n1w) 2839 | -9/Mines | Received a Rocket Launcher from a helpful Derelict 3485 | -9/Mines | Lost 4 parts (2n1u1w) 3742 | -9/Mines | Build established: Mutant 6003 | -9/Mines | Joined a pair of Derelicts in attacking an 0b10 outpost 6026 | -9/Mines | Discovered exit to Materials (range 6) 6063 | -9/Mines | Learned location of 1 exit from Materials 6072 | -9/Mines | Deemed a non-threat by the Exiles lab entrance 6072 | -9/Mines | Discovered new exit (range 5) 6077 | -9/Mines | Entered Exiles 6077 | -9/Exiles | Found Exiles lab destroyed 6258 | -9/Exiles | Build established: Scavenger-Mutant 6507 | -9/Exiles | Opened EX-Vault 6519 | -9/Exiles | Found Trap Reconfigurator 6739 | -9/Exiles | Learned location of Zion (-6) 6895 | -9/Exiles | Discovered new exit (range 10) 6912 | -9/Exiles | Entered Mines 6912 | -8/Mines | Accompanied by 3 allies 6997 | -8/Mines | Discovered exit to Materials (range 12) 7016 | -8/Mines | Entered Materials 7016 | -8/Materials | Accompanied by 3 allies 7016 | -8/Materials | Evolved 2 slots: Propulsion x1, Utility x1 7017 | -8/Materials | Identified exit to Factory 7183 | -8/Materials | Discovered new exit (range 15) 7244 | -8/Materials | Garrison activated, responded to threat 7400 | -8/Materials | Destroyed 7 combat bots 7565 | -8/Materials | Discovered exit to Factory (range 16) 7848 | -8/Materials | Entered Factory 7848 | -7/Factory | Evolved 2 slots: Power x1, Propulsion x1 7994 | -7/Factory | Fabricated T-07 Excavator? 8007 | -7/Factory | Discovered new exit (range 15) 8012 | -7/Factory | Identified exit to Factory 8012 | -7/Factory | Entered another Factory area 8012 | -6/Factory | Evolved 2 slots: Utility x2 8152 | -6/Factory | Fabricated Cesium-ion Thruster (x2) 8175 | -6/Factory | Build established: Scavenger-Sprinter 8213 | -6/Factory | Identified exit to Lower Caves 8213 | -6/Factory | Identified exit to Extension 8295 | -6/Factory | Lost 5 parts (2p2n1u) 8311 | -6/Factory | Identified exit to Factory 8462 | -6/Factory | Fabricated Cesium-ion Thruster? 8498 | -6/Factory | Entered another Factory area 8498 | -5/Factory | Evolved 2 slots: Propulsion x1, Utility x1 8543 | -5/Factory | Build established: Hacker-Sprinter 8552 | -5/Factory | Lost 3 parts (3n) 8573 | -5/Factory | Identified exit to Factory 8649 | -5/Factory | Lost 3 parts (1p2n) 8656 | -5/Factory | Fabricated Imp. Coolant Injector? 8662 | -5/Factory | Fabricated Adv. Heavy Siege Treads? 8905 | -5/Factory | Build established: Hacker-Mutant 8919 | -5/Factory | Lost 7 parts (1p2n2u2w) 8924 | -5/Factory | Core integrity fell below 50% 8933 | -5/Factory | Core integrity fell below 20% 8939 | -5/Factory | Entered another Factory area 8939 | -4/Factory | Evolved 2 slots: Propulsion x1, Utility x1 9042 | -4/Factory | Spotted B-86 Titan 9045 | -4/Factory | Identified exit to Research 9114 | -4/Factory | Discovered new exit (range 5) 9115 | -4/Factory | Identified exit to Upper Caves 9116 | -4/Factory | Entered Upper Caves 9118 | -4/Upper Caves | Spotted B-86 Titan 9138 | -4/Upper Caves | Learned Research emergency access door positions 9256 | -4/Upper Caves | Attracted the attention of an 0b10 checkpoint 9280 | -4/Upper Caves | Learned location of Quarantine (-3) 9292 | -4/Upper Caves | Discovered new exit (range 15) 9299 | -4/Upper Caves | Identified exit to Upper Caves 9300 | -4/Upper Caves | Entered another Upper Caves area 9301 | -4/Upper Caves | Encountered a Warlord checkpoint 9303 | -4/Upper Caves | Learned location of Armory (-4) 9361 | -4/Upper Caves | Discovered new exit (range 15) 9366 | -4/Upper Caves | Identified exit to Warlord 9367 | -4/Upper Caves | Entered Warlord 9380 | -4/Warlord | System corruption cleaned by Quarantine Array 9620 | -4/Warlord | Warlord's base attacked by MAIN.C 9645 | -4/Warlord | Met Warlord 9704 | -4/Warlord | Found Prototype Energy Gun 9705 | -4/Warlord | Identified Vortex Rifle 9970 | -4/Warlord | Warlord forces counterattacked 10012 | -4/Warlord | Opened side exit 10254 | -4/Warlord | Spotted Striker 10295 | -4/Warlord | Warlord base infiltrated, sounded retreat 10393 | -4/Warlord | Spotted Executioner 10405 | -4/Warlord | Spotted Striker 10437 | -4/Warlord | Discovered new exit (range 15) 10440 | -4/Warlord | Identified exit to Proximity Caves 10442 | -4/Warlord | Entered Proximity Caves 10447 | -3/Proximity Caves | Spotter reported a threat 10455 | -3/Proximity Caves | Spotter reported a threat 10525 | -3/Proximity Caves | Attracted the attention of an 0b10 checkpoint 10640 | -3/Proximity Caves | Spotted B-86 Titan 10644 | -3/Proximity Caves | Discovered exit to Research (range 9) 10646 | -3/Proximity Caves | Entered Research 10646 | -3/Research | Evolved 2 slots: Utility x2 10678 | -3/Research | Identified exit to Quarantine 10741 | -3/Research | Identified exit to DSF 10741 | -3/Research | Entered DSF 10751 | -3/DSF | Discovered new exit (range 16) 10756 | -3/DSF | Identified exit to Research 10756 | -3/DSF | Entered Research 10756 | -2/Research | Warlord forces began assault on 0b10 10756 | -2/Research | Evolved 2 slots: Propulsion x1, Utility x1 10786 | -2/Research | Lost 4 parts (1p3n) 10792 | -2/Research | Discovered new exit (range 8) 10828 | -2/Research | Spotted B-90 Cyclops 10866 | -2/Research | Research machine network offline 10931 | -2/Research | Discovered new exit (range 16) 10938 | -2/Research | Identified exit to Testing 10970 | -2/Research | Lost 5 parts (1n4u) 11051 | -2/Research | Spotted Executioner 11052 | -2/Research | Spotted Striker 11055 | -2/Research | Core integrity fell below 50% 11113 | -2/Research | Entered Testing 11220 | -2/Testing | Garrison activated, responded to threat 11263 | -2/Testing | Found Prototype Ballistic Gun 11264 | -2/Testing | Identified Hyp. Multirail 11386 | -2/Testing | Spotted Superbehemoth 11401 | -2/Testing | Released all parts (12) 11401 | -2/Testing | Discovered new exit (range 8) 11406 | -2/Testing | Entered Access 11406 | -1/Access | Evolved 2 slots: Power x1, Propulsion x1 11431 | -1/Access | Lost 4 parts (2p1n1u) 11472 | -1/Access | Found Enh. Force Lance 11524 | -1/Access | Spotted B-99 Colossus 11524 | -1/Access | Spotted B-99 Colossus 11532 | -1/Access | Core integrity fell below 50% 11532 | -1/Access | System corruption reached 10% 11536 | -1/Access | Core integrity fell below 20% 11541 | -1/Access | Destroyed by P-80 Master with Gamma Rifle Last Messages --------------- 11533_ Slug penetrates K-01 Serf. 11533_ K-01 Serf destroyed. 11534_ Penetrated by Slug. 11534_ Slug penetrates Sealed Heavy Doors. 11534_ Acquired 20 matter. 11534_ Penetrated by Slug. 11534_ Slug penetrates Wall. 11534_ Slammed into P-80 Master. 11534_ Slug penetrates Sealed Heavy Doors. 11534_ Penetrated by Slug. 11534_ Slug penetrates Sealed Heavy Doors. 11534_ Penetrated by Slug. 11535_ Slammed into P-80 Master. 11536_ U-05 Engineer lays Concrete. 11537_ Slug penetrates Sealed Heavy Doors. 11537_ K-01 Serf destroyed. 11539_ Slug penetrates Wall. 11539_ Penetrated by Slug. 11539_ P-80 Master resets P-80 Master, system corruption cleaned. [Achievement: I Think I Know What's Going On] Map ----- +----------------------------------------------------+ | ?????????????????????????????????????????????????? | | ?????????????????????????????????????????????????? | | ?????????????????????????????????????????????????? | | ?????????????????????????????????????????????????? | | ?????????????????????????????????????????????????? | | ?????????????????????????????????????????????????? | | ?????????????????????????????????????????????????? | | ?????????????????????????????????????????????????? | | ?????????????????????????????????????????????????? | | ???????????########? ??????????????????????????? | | ???????????# ## #?????????????????????????? | | ???????????# ## ##????????????????????????? | | ???????????# # #????????????????????????? | | ???????????# # #????????????????????????? | | ???????????# # ?????????????????????????? | | ???????????# # ?????????????????????????? | | ???????????# # ?????????????????????????? | | ???????????# ## #?????????????????????????? | | ???????????# ## #?????????????????????????? | | ########???# ## #??????????#####??????????? | | #???# ## #??????????""T""" ?????? | | #???# ## #?????????""" """ ?????? | | #???# ## #????????? ?????? | | #???##+##+### ########? ????? | | ###### A #? ! ????? | | + k @ # !! ???? | | ###### # ! ???? | | #????###############u + ???? | | #??????????????????#ppp# ???? | | ####+### #?????????????# # ! ???? | | #????????????## %p#?######## ####????? | | ^ #?????#########"*"#########??????????? | | ## #?????# % !=% % #??????????? | | # !!!#?????# = = #??????????? | | # !!!#?????# % ! % #??????????? | | # !!!#?????# #####"""##"## #??????????? | | # #?????###???????????##??###??????????? | | # #????????????????????????????????????? | | # #????????????????????????????????????? | | # ######???????????????????????????????? | | + ????????????????????????????????? | | # ?????????????????????????????????? | | ####### #?????????????????????????????????? | | #?????# #?????????????????????????????????? | | #?????# #?????????????????????????????????? | | ######## #?????????????????????????????????? | | # #?????????????????????????????????? | | # #?????????????????????????????????? | | # #?????????????????????????????????? | | # ########??????????????????????????? | +----------------------------------------------------+ Best States ------------- Heat Dissipation 111 Energy Generation 37 Energy Capacity 395 Matter Stores 300 Matter Capacity 300 Sight Range 16 Robot Scan Range 15 Terrain Scan Range 20 Terrain Scan Density 210 Jamming Range 12 Armor Coverage 225 Point Defense Rating 160 Evasion (%) 66 Targeting Accuracy 8 Melee Accuracy 6 Recoil Reduction 2 Offensive Hacking 22 Defensive Hacking 11 Item Schematics ----------------- Cesium-ion Thruster | -9/Materials | Scanalyzed Deuterium Engine | -6/Factory | Scanalyzed Exp. Q-thruster | -2/Testing | Archive Robot Schematics ------------------ None Fabricated ------------ T-07 Excavator | x1 | -7/Factory | Preloaded Cesium-ion Thruster | x2 | -6/Factory Cesium-ion Thruster | x2 | -6/Factory Imp. Coolant Injector | x2 | -5/Factory | Preloaded Adv. Heavy Siege Treads | x2 | -5/Factory | Preloaded Alien Tech Used ----------------- None Achievements -------------- Charge!!! I Think I Know What's Going On No Explosion For You Origins Watch This! Challenges ------------ None Game ------ Seed UtilityMeleeBeamcaster Manual? 0 Play Time 02:46:20 Cumulative 81.0 hours Start 2023.04.06 @ 13:36:29 End 2023.04.06 @ 23:03:25 Sessions 5 Manual Loads 0 Difficulty Rogue Special Mode None Game No. 100 Rogue 100 Adventurer 0 Explorer 0 Win Type - Total 0 Types 0/0/0/0/0/0/0/0/0 Lore% 51 Gallery% 48 Achievement% 42 Wizard Run 0 Options --------- ASCII 0 Keyboard 0 Movement Arrows Keybinds 0 Fullscreen 1 Font 12/Smallcaps Map View 83x54 Tactical HUD 1 Map Filters NONE Filters NONE Steam 1 RUN: 99261289-3295-44df-8e16-36dfc88a29e5